[Event "125-Jahre Werder Bremen 2024"]
[Site "Bremen"]
[Date "2024.03.07"]
[Round "6.6"]
[White "Pajeken, Jakob Leon"]
[Black "Schneider, Jana"]
[Result "1-0"]
[ECO "D37"]
[WhiteElo "2424"]
[BlackElo "2303"]
[Annotator "TA"]
[PlyCount "95"]
[EventDate "2024.02.26"]
[EventType "swiss"]
[EventCountry "GER"]
[SourceTitle "playchess.com"]
[Source "ChessBase"]
[SourceQuality "1"]
[TimeControl "40/6000+30:1800+30"]

{[%evp 9,95,0,30,10,57,62,49,52,61,58,70,61,93,82,96,81,123,101,97,102,104,108,166,173,184,184,256,251,241,235,403,397,392,394,459,449,545,545,661,654,764,765,808,781,1427,1448,1223,479,652,608,604,652,655,655,649,649,572,0,0,0,614,595,737,699,695,666,791,368,1025,649,975,937,975,975,930,910,29972,29973,29970,29971,29977,29978,29976,29977,29986,29987,29985,1712]} 1. d4 {[%emt 0:00:26]} d5 {[%emt 0:00:13]} 2. c4 {[%emt 0:00:09][%cal Bc2c4,Bc4c5][%mdl 32]} e6 {[%emt 0:00:06]} 3. Nc3 {[%emt 0:00:05]} Nf6 {[%emt 0:00:08]} 4. Nf3 {[%emt 0:00:11]} Nbd7 {[%emt 0:00:14]} 5. e3 {[%emt 0:03:19]} Bd6 {[%emt 0:03:48]} 6. Bd3 {[%emt 0:02:04] D37: Queen's Gambit Declined: 5 Bf4.} a6 {[%emt 0:01:33]} (6... c5 $11 {deserves consideration.}) 7. c5 $14 {[%emt 0:00:37]} Be7 {[%emt 0:00:14]} 8. O-O {[%emt 0:02:58]} O-O {[%emt 0:04:49]} 9. Qc2 $146 {[%emt 0:02:10]} ({Predecessor:} 9. b4 c6 10. Bb2 b6 11. a4 a5 12. b5 Bb7 13. bxc6 Bxc6 14. cxb6 Rb8 15. Nb5 {½-½ Gallevci,Y (2214)-Tuncer,T (2352) Ayvalik Plati 2022 (6)}) 9... h6 {[%emt 0:02:04]} 10. b4 {[%emt 0:04:58]} Re8 {[%emt 0:08:43]} 11. Bb2 {[%emt 0:06:50]} Bf8 {[%emt 0:04:25]} 12. Ne2 {[%emt 0:09:47]} g6 {[%emt 0:02:51]} 13. Ne5 {[%emt 0:02:24]} Nxe5 {[%emt 0:02:41]} 14. dxe5 {[%emt 0:00:34]} Nd7 {[%emt 0:00:20]} 15. f4 {[%emt 0:03:31]} c6 {[%emt 0:04:46]} (15... Qe7 $16 {keeps fighting.} 16. Rac1 Nb8) 16. Nd4 {[%emt 0:03:43][%cal Od3g6]} Bg7 {[%emt 0:03:51]} 17. a4 {[%emt 0:03:38]} Qc7 {[%emt 0:04:21] [#]} (17... Nf8 {might work better.} 18. b5 Bd7) 18. Bxg6 $1 $18 {[%emt 0:23:30][%mdl 512]} fxg6 {[%emt 0:01:17]} 19. Qxg6 {[%emt 0:00:11]} Qd8 $2 {[%emt 0:15:38]} (19... Re7 20. Nxe6 Nxe5 21. Qxg7+ (21. Nxc7 $2 Nxg6 22. Bxg7 Rxc7 $19) (21. Bxe5 Rxe6 $16) 21... Rxg7 22. Nxc7 Rxc7) 20. Nxe6 {[%emt 0:00:51]} Rxe6 {[%emt 0:01:09]} 21. Qxe6+ {[%emt 0:00:06]} Kh8 {[%emt 0:00:06][%cal Od7e5]} 22. Qf7 {[%emt 0:04:51]} Qg8 {[%emt 0:03:12]} 23. Qh5 {[%emt 0:07:02]} Qf8 {[%emt 0:03:25]} 24. Rf3 {[%emt 0:01:32]} a5 {[%emt 0:02:20]} 25. Rg3 {[%emt 0:06:40]} axb4 {[%emt 0:08:45]} 26. Rf1 {[%emt 0:00:49]} Rxa4 {[%emt 0:02:01]} 27. f5 {[%emt 0:03:21] Intending f6 and mate.} Bxe5 {[%emt 0:00:46] [#]} 28. f6 $1 {[%emt 0:02:02][%mdl 512]} Bxg3 {[%emt 0:02:56]} (28... Bxb2 29. Rg7) 29. f7+ {[%emt 0:04:33]} Be5 {[%emt 0:00:19]} 30. Bxe5+ {[%emt 0:00:06]} Nxe5 {[%emt 0:00:05]} 31. Qxe5+ {[%emt 0:00:04]} Kh7 {[%emt 0:00:06][%cal Ob4b3]} 32. Qe8 {[%emt 0:00:23]} Kg7 {[%emt 0:00:34]} 33. Qe5+ {[%emt 0:00:16]} Kh7 {[%emt 0:00:13][%cal Ob4b3]} 34. Qe8 $36 {[%emt 0:00:03][%mdl 2048] White fights for an advantage.} Kg7 {[%emt 0:00:04] [#]} 35. Rf6 $3 {[%emt 0:01:03][%mdl 512]} Ra1+ {[%emt 0:06:35]} (35... Kxf6 36. Qxf8) 36. Kf2 {[%emt 0:00:08][%cal Of6g6] White wants to mate with Rg6+!} Ra2+ {[%emt 0:00:13]} 37. Kg3 {[%emt 0:00:10]} Bf5 {[%emt 0:00:23] Wards off Rg6+} 38. Qe5 {[%emt 0:01:27]} (38. Rxf5 $142 b3 39. Rf4) 38... Be4 $2 {[%emt 0:03:52]} (38... Bc2) 39. Rf2+ {[%emt 0:00:53]} (39. Rxc6+ Kh7 40. Rf6 b3 $19 (40... Rxg2+ $2 41. Kh4 $19)) 39... Kh7 {[%emt 0:00:17]} 40. Rxa2 {[%emt 0:00:07][%cal Oa2a8] Threatens to win with Ra8!} Qxf7 {[%emt 0:01:08][%mdl 4096] Endgame. KQR-KQB} 41. Ra8 {[%emt 0:30:49] Active counter play!} Qg6+ {[%emt 0:35:26]} 42. Kh4 {[%emt 0:00:15][%csl Ge5][%cal Ra8h8]} Qg5+ {[%emt 0:00:46]} 43. Qxg5 {[%emt 0:00:07]} hxg5+ {[%emt 0:00:04]} 44. Kxg5 {[%emt 0:00:02]} Bd3 {[%emt 0:00:32]} 45. Ra4 {[%emt 0:00:21]} b3 {[%emt 0:01:09]} 46. Rb4 {[%emt 0:00:10][%csl LRb3,LRb7]} Bc4 {[%emt 0:00:23]} 47. Rxb7+ {[%emt 0:00:12]} Kg8 {[%emt 0:00:07]} 48. Rb4 {[%emt 0:00:34]} (48. Kf6 $142 Be2 49. Rxb3 Kh7 50. Rb6 Bf1 51. Rxc6 Bxg2 52. Rc8 Bh3 53. Rd8) 1-0

[Event "125-Jahre Werder Bremen 2024"]
[Site "Bremen"]
[Date "2024.03.07"]
[Round "6.7"]
[White "Krastev, Alexander"]
[Black "Kopylov, Michael"]
[Result "1/2-1/2"]
[ECO "C00"]
[WhiteElo "2457"]
[BlackElo "2352"]
[Annotator "TA"]
[PlyCount "49"]
[EventDate "2024.02.26"]
[EventType "swiss"]
[EventCountry "GER"]
[SourceTitle "playchess.com"]
[Source "ChessBase"]
[SourceQuality "1"]
[TimeControl "40/6000+30:1800+30"]

{[%evp 12,49,-4,-3,17,25,25,21,16,17,10,15,14,10,26,25,22,25,22,21,18,15,16,0,0,0,0,-12,-11,-12,9,8,6,7,7,0,0,0,2,0]} 1. e4 {[%emt 0:07:55]} e6 {[%emt 0:00:13]} 2. d3 {[%emt 0:05:35]} c5 {[%emt 0:03:45]} 3. Nf3 {[%emt 0:00:17]} Nc6 {[%emt 0:00:23]} 4. g3 {[%emt 0:00:05]} d5 {[%emt 0:04:37]} 5. Qe2 {[%emt 0:00:08]} Nf6 {[%emt 0:01:46]} 6. Bg2 {[%emt 0:00:05]} Be7 {[%emt 0:02:11]} 7. O-O {[%emt 0:00:08]} dxe4 {[%emt 0:01:21]} 8. dxe4 {[%emt 0:00:08]} e5 {[%emt 0:00:05]} 9. Rd1 {[%emt 0:06:48]} Qc7 {[%emt 0:00:47]} 10. c3 {[%emt 0:00:06]} (10. Bg5 {looks sharper.} Bg4 11. c3 Rd8 12. Na3) 10... O-O {[%emt 0:00:23]} 11. Na3 {[%emt 0:02:37][%cal Bb1a3,Ba3c4,Bc4e3,Be3d5][%mdl 32]} Be6 {[%emt 0:10:49]} 12. Bg5 {[%emt 0:03:55]} Rfd8 {[%emt 0:05:57]} 13. Nc4 {[%emt 0:03:19]} Rxd1+ {[%emt 0:25:17]} 14. Rxd1 {[%emt 0:00:07]} Rd8 {[%emt 0:00:04]} 15. Rxd8+ {[%emt 0:38:44] The position is equal.} Bxd8 {[%emt 0:00:13]} 16. b3 {[%emt 0:00:08]} b5 {[%emt 0:09:08]} 17. Bxf6 {[%emt 0:12:24]} Bxf6 {[%emt 0:06:44]} 18. Ne3 {[%emt 0:00:09]} b4 {[%emt 0:00:30]} 19. Nd5 {[%emt 0:01:48]} Qa5 {[%emt 0:08:51]} 20. c4 {[%emt 0:01:27]} (20. cxb4 {simplifies} Nxb4 21. Nxb4 cxb4 22. h4) 20... Nd4 {[%emt 0:00:58]} 21. Nxd4 {[%emt 0:14:25]} cxd4 {[%emt 0:02:33]} 22. Qd2 {[%emt 0:01:04]} Bxd5 {[%emt 0:03:21]} 23. exd5 {[%emt 0:00:05]} Qc5 {[%emt 0:00:14]} 24. Be4 {[%emt 0:02:55]} g6 {[%emt 0:00:36]} 25. g4 {[%emt 0:02:38] A rather calm draw.   Weighted Error Value: White=0.02 (flawless) /Black=0.03 (flawless) .  OK:         	White=7     	Black=10} 1/2-1/2

[Event "125-Jahre Werder Bremen 2024"]
[Site "Bremen"]
[Date "2024.03.07"]
[Round "6.8"]
[White "Meins, Gerlef"]
[Black "Colbow, Collin"]
[Result "1/2-1/2"]
[ECO "A13"]
[WhiteElo "2390"]
[BlackElo "2373"]
[Annotator "TA"]
[PlyCount "120"]
[EventDate "2024.02.26"]
[EventType "swiss"]
[EventCountry "GER"]
[SourceTitle "playchess.com"]
[Source "ChessBase"]
[SourceQuality "1"]
[TimeControl "40/6000+30:1800+30"]

{[%evp 14,120,14,4,12,12,24,16,40,11,39,4,25,26,81,74,102,99,112,117,110,110,204,133,130,138,138,129,118,131,126,116,229,209,370,375,476,441,545,564,527,428,430,60,56,75,86,55,71,22,19,18,19,18,7,10,66,66,78,78,78,78,78,77,78,78,78,64,85,0,0,0,0,0,0,0,0,0,0,0,0,0,85,85,85,85,85,85,85,85,85,0,85,85,85,85,85,85,85,85,85,0,0,0,0,0,0,0,18]} 1. c4 {[%emt 0:00:09]} Nf6 {[%emt 0:10:15]} 2. Nf3 {[%emt 0:00:31]} e6 {[%emt 0:00:09]} 3. g3 {[%emt 0:01:06]} d5 {[%emt 0:00:07]} 4. Bg2 {[%emt 0:00:26]} d4 {[%emt 0:00:12]} 5. e3 {[%emt 0:00:42]} c5 {[%emt 0:00:08]} 6. exd4 {[%emt 0:00:27]} cxd4 {[%emt 0:00:07]} 7. d3 {[%emt 0:00:26]} Nc6 {[%emt 0:00:15]} 8. O-O {[%emt 0:00:27]} Bc5 {[%emt 0:00:22]} 9. Bg5 {[%emt 0:11:09]} h6 {[%emt 0:02:08]} 10. Bxf6 {[%emt 0:00:06]} gxf6 {[%emt 0:00:07]} 11. Nbd2 {[%emt 0:04:08]} a5 {[%emt 0:06:01][%cal Ba7a5,Ba5a4][%mdl 32]} 12. a3 {[%emt 0:07:37]} f5 {[%emt 0:07:50]} 13. Re1 {[%emt 0:05:47]} Qd6 {[%emt 0:09:22]} (13... O-O $11 {keeps the balance.}) 14. Nb3 $16 {[%emt 0:08:30]} Ba7 {[%emt 0:17:06]} 15. Rc1 {[%emt 0:07:30]} a4 {[%emt 0:01:10]} 16. c5 {[%emt 0:01:00]} Qd8 {[%emt 0:00:17]} 17. Nbd2 {[%emt 0:01:24][%cal Bb3d2,Bd2c4,Bc4e5][%mdl 32]} Bb8 {[%emt 0:04:26]} (17... Bd7 $16 {is a better defense.}) 18. Nc4 {[%emt 0:03:10]} Bc7 {[%emt 0:04:50]} 19. Nfe5 $36 {[%emt 0:03:33][%mdl 2048] White has strong initiative.} Nxe5 {[%emt 0:03:58]} 20. Nxe5 {[%emt 0:00:08]} Ra5 {[%emt 0:00:17]} 21. Nc4 {[%emt 0:13:37]} Ra6 {[%emt 0:15:24]} 22. Qd2 {[%emt 0:01:36] White is much more active.} Ra7 {[%emt 0:06:11]} (22... Kf8 $16 {might work better.}) 23. Nd6+ $18 {[%emt 0:12:17]} Bxd6 $2 {[%emt 0:02:27]} (23... Kf8 24. Qb4 Kg8 25. Qxd4 (25. Bxb7 Bxd6 26. Bxc8 Bc7 $18) 25... Kh7) 24. cxd6 {[%emt 0:00:03]} Ra6 {[%emt 0:00:04]} 25. Rc7 {[%emt 0:03:25] Hoping for Rec1.} Rxd6 {[%emt 0:00:48]} 26. Rec1 {[%emt 0:00:08]} Bd7 {[%emt 0:00:42]} 27. Rxb7 {[%emt 0:00:56]} Rb6 {[%emt 0:02:10] Repels Qb4} 28. Rxb6 {[%emt 0:07:22]} (28. Ra7 $18) 28... Qxb6 $14 {[%emt 0:00:06]} 29. Rc4 {[%emt 0:00:13]} Ke7 {[%emt 0:02:57]} 30. Qc1 {[%emt 0:09:56]} (30. Bf3 {looks sharper.} e5 31. Qc1 Kd6 32. Rb4) 30... Rb8 {[%emt 0:04:46][%cal Bh8b8,Bb8b2,Bb2b3,Bb3d3][%mdl 32]} 31. Bc6 {[%emt 0:00:53]} ({Better is} 31. Qxh6 $16 Qxb2 32. Bf3) 31... Qxb2 $11 {[%emt 0:06:41]} 32. Qxb2 {[%emt 0:00:43]} (32. Bxa4 $2 {is the wrong capture.} Qxc1+ 33. Rxc1 Bxa4 $19) 32... Rxb2 {[%emt 0:00:03]} 33. Bxd7 {[%emt 0:00:05]} Kxd7 {[%emt 0:00:06]} 34. Rxd4+ {[%emt 0:00:06][%mdl 4096] Endgame. KR-KR} Kc6 {[%emt 0:02:40]} (34... Ke7 $11) 35. Rxa4 $14 {[%emt 0:00:05]} Rb3 {[%emt 0:00:31]} 36. Ra7 {[%emt 0:02:05]} Rxd3 {[%emt 0:00:34]} 37. Rxf7 {[%emt 0:00:07]} Rxa3 {[%emt 0:00:43]} 38. Rf6 {[%emt 0:00:10]} Kd5 {[%emt 0:00:01]} 39. Rxh6 {[%emt 0:00:08]} e5 {[%emt 0:00:53]} 40. Rh4 {[%emt 0:05:26]} e4 {[%emt 0:02:51]} 41. Rf4 {[%emt 0:03:38]} ({White should try} 41. Rh8 $16) 41... Ke5 $11 {[%emt 0:01:21]} 42. Kg2 {[%emt 0:00:38]} Ra2 {[%emt 0:03:44]} 43. Kh3 $1 {[%emt 0:09:12]} Ra8 {[%emt 0:04:37]} 44. Kh4 {[%emt 0:03:52]} Rg8 {[%emt 0:01:11]} 45. Kh3 {[%emt 0:02:00]} Ra8 {[%emt 0:00:07]} 46. Kg2 {[%emt 0:00:40]} Ra2 {[%emt 0:00:03]} 47. h4 {[%emt 0:00:29]} e3 {[%emt 0:00:43]} (47... Ra8 $11) 48. Rf3 $16 {[%emt 0:00:14]} exf2 {[%emt 0:00:28]} 49. Rxf2 {[%emt 0:00:06]} Ra3 {[%emt 0:02:10]} 50. Rf3 {[%emt 0:00:16]} Ra2+ {[%emt 0:02:03]} 51. Kh3 $1 {[%emt 0:00:08]} Ra4 {[%emt 0:03:35]} 52. Rb3 {[%emt 0:01:51]} ({White should play} 52. Re3+ $16 Kf6 53. Rb3) 52... Ra2 {[%emt 0:04:28] [#]} (52... f4 $1 $11) 53. Rb6 $1 {[%emt 0:06:57]} Ra3 {[%emt 0:01:40] [#]} 54. Rb4 $1 {[%emt 0:01:32]} Ra2 {[%emt 0:00:25]} 55. Rf4 {[%emt 0:02:03]} Ra3 {[%emt 0:00:44]} 56. Rf1 {[%emt 0:01:41]} Rb3 {[%emt 0:01:18]} 57. h5 {[%emt 0:00:41]} (57. Kg2 $16) 57... Kf6 $11 {[%emt 0:01:02] The position is equal.} 58. Kh4 {[%emt 0:00:28] g4 is the strong threat.} Rb4+ {[%emt 0:01:09]} 59. Rf4 {[%emt 0:00:06]} Rb1 {[%emt 0:00:19][%cal Rb1h1]} 60. g4 {[%emt 0:00:27]} Rh1+ {[%emt 0:00:14] White really could win this.   Weighted Error Value: White=0.26 (precise) /Black=0.26 (precise) .  Missed win:     	White=1     	---        Mistake:       	White=4     	Black=7      Inaccurate:     	White=4     	Black=2      OK:         	White=16    	Black=21     Best:        	White=2     	Black=4      Strong:       	White=4     	---} 1/2-1/2

[Event "125-Jahre Werder Bremen 2024"]
[Site "Bremen"]
[Date "2024.03.07"]
[Round "6.9"]
[White "Soderstrom, Adrian"]
[Black "Reuker, Jari"]
[Result "0-1"]
[ECO "C11"]
[WhiteElo "2288"]
[BlackElo "2383"]
[Annotator "RC"]
[PlyCount "86"]
[EventDate "2024.02.26"]
[EventType "swiss"]
[EventCountry "GER"]
[SourceTitle "playchess.com"]
[Source "ChessBase"]
[SourceQuality "1"]
[TimeControl "40/6000+30:1800+30"]

1. e4 {[%emt 0:00:13]} e6 {[%emt 0:00:09]} 2. d4 {[%emt 0:00:05]} d5 {[%emt 0:00:04]} 3. Nc3 {[%emt 0:00:25]} Nf6 {[%emt 0:00:13]} 4. e5 {[%emt 0:00:36]} Nfd7 {[%emt 0:00:06]} 5. Nce2 {[%emt 0:00:11]} c5 {[%emt 0:00:31]} 6. c3 {[%emt 0:00:03]} Nc6 {[%emt 0:00:07]} 7. Nf3 {[%emt 0:00:08]} cxd4 {[%emt 0:00:40]} 8. cxd4 {[%emt 0:00:02]} f6 {[%emt 0:00:08]} 9. Nf4 {[%emt 0:06:23]} fxe5 {[%emt 0:00:34]} 10. Nxe6 {[%emt 0:01:11]} Qb6 {[%emt 0:00:12]} 11. Nxf8 {[%emt 0:13:21]} Rxf8 {[%emt 0:03:54]} 12. dxe5 {[%emt 0:00:27]} Ndxe5 {[%emt 0:00:42]} 13. Be2 {[%emt 0:01:22]} Bg4 {[%emt 0:00:24]} 14. Qxd5 {[%emt 0:11:52]} Rd8 {[%emt 0:01:05]} 15. Qe4 {[%emt 0:00:46]} Qa5+ {[%emt 0:03:22]} 16. b4 {[%emt 0:04:11]} Qxb4+ {[%emt 0:22:01]} 17. Qxb4 {[%emt 0:00:08]} Nxb4 {[%emt 0:00:55]} 18. Nxe5 {[%emt 0:03:13]} Nc2+ {[%emt 0:01:29]} 19. Kf1 {[%emt 0:00:01]} Bxe2+ {[%emt 0:00:35]} 20. Kxe2 {[%emt 0:00:02]} Nxa1 {[%emt 0:00:20]} 21. Ba3 {[%emt 0:00:13]} Rf4 {[%emt 0:04:58]} 22. Bb2 {[%emt 0:08:15]} Nc2 {[%emt 0:03:00]} 23. Rc1 {[%emt 0:00:18]} Nd4+ {[%emt 0:01:21]} 24. Ke3 {[%emt 0:00:42]} Ne6 {[%emt 0:00:23]} 25. Nd3 {[%emt 0:01:26]} Rxd3+ {[%emt 0:04:53]} 26. Kxd3 {[%emt 0:00:02]} Rxf2 {[%emt 0:00:08]} 27. Rc2 {[%emt 0:05:20]} Nf4+ {[%emt 0:00:46]} 28. Kc3 {[%emt 0:00:03]} Rxg2 {[%emt 0:00:48]} 29. Rxg2 {[%emt 0:00:16]} Nxg2 {[%emt 0:00:05]} 30. Kd4 {[%emt 0:01:30]} Nf4 {[%emt 0:04:31]} 31. Ke4 {[%emt 0:02:17]} Ne6 {[%emt 0:00:24]} 32. Ke5 {[%emt 0:02:06]} Kd7 {[%emt 0:00:16]} 33. h4 {[%emt 0:00:27]} g5 {[%emt 0:47:14]} 34. h5 {[%emt 0:08:03]} g4 {[%emt 0:00:19]} 35. Ke4 {[%emt 0:00:10]} b5 {[%emt 0:05:06]} 36. Be5 {[%emt 0:01:15]} a5 {[%emt 0:03:07]} 37. Kf5 {[%emt 0:00:40]} Nc5 {[%emt 0:00:46]} 38. Kxg4 {[%emt 0:01:29]} Ke6 {[%emt 0:01:13]} 39. Bc7 {[%emt 0:01:58]} a4 {[%emt 0:01:10]} 40. Ba5 {[%emt 0:00:01]} Nd3 {[%emt 0:00:37]} 41. a3 {[%emt 0:32:34]} b4 {[%emt 0:07:24]} 42. axb4 {[%emt 0:00:00]} Ne5+ {[%emt 0:01:05]} 43. Kg5 {[%emt 0:00:00]} Nc6 {[%emt 0:00:53]} 0-1

[Event "125-Jahre Werder Bremen 2024"]
[Site "Bremen"]
[Date "2024.03.07"]
[Round "6.10"]
[White "Hejazipour, Mitra"]
[Black "Pruijssers, Roeland"]
[Result "0-1"]
[ECO "D36"]
[WhiteElo "2356"]
[BlackElo "2537"]
[Annotator "TA"]
[PlyCount "80"]
[EventDate "2024.02.26"]
[EventType "swiss"]
[EventCountry "GER"]
[SourceTitle "playchess.com"]
[Source "ChessBase"]
[SourceQuality "1"]
[TimeControl "40/6000+30:1800+30"]

{[%evp 21,80,24,22,15,33,16,14,13,10,0,20,-12,-12,-24,-12,-81,-85,-100,-88,-110,-107,-139,-129,-145,-141,-260,-270,-260,-255,-329,-227,-318,-303,-303,-321,-323,-285,-405,-282,-289,-283,-304,-289,-320,-316,-307,-308,-319,-309,-310,-293,-279,-279,-329,-309,-402,-392,-482,-477,-29995,-29996]} 1. d4 {[%emt 0:00:07]} d5 {[%emt 0:00:09]} 2. c4 {[%emt 0:00:09]} e6 {[%emt 0:00:07]} 3. Nc3 {[%emt 0:00:15]} Nf6 {[%emt 0:00:08]} 4. cxd5 {[%emt 0:00:26]} exd5 {[%emt 0:00:08]} 5. Bg5 {[%emt 0:00:15]} c6 {[%emt 0:00:08]} 6. e3 {[%emt 0:00:21]} Be7 {[%emt 0:00:10]} 7. Qc2 {[%emt 0:00:21]} Nbd7 {[%emt 0:00:55]} 8. Bd3 {[%emt 0:00:24]} h6 {[%emt 0:03:25]} 9. Bh4 {[%emt 0:00:16]} Nh5 {[%emt 0:00:07]} 10. Bxe7 {[%emt 0:00:28]} Qxe7 {[%emt 0:00:06]} 11. Nge2 {[%emt 0:02:42][%cal Bg1e2,Be2c1,Bc1b3][%mdl 32]} Nb6 {[%emt 0:00:42]} 12. h3 {[%emt 0:00:43]} Be6 {[%emt 0:00:22]} 13. g4 {[%emt 0:03:43]} Nf6 {[%emt 0:00:08]} 14. O-O-O {[%emt 0:01:10] Die Stellung ist ausgeglichen.} O-O-O {[%emt 0:00:23]} 15. Kb1 {[%emt 0:12:59]} Kb8 {[%emt 0:00:23]} 16. Nc1 {[%emt 0:03:32]} Ne8 {[%emt 0:06:10]} 17. Nb3 {[%emt 0:03:45]} Bc8 {[%emt 0:05:50]} 18. Ne2 {[%emt 0:10:51]} (18. Rdg1 $11) 18... h5 $17 {[%emt 0:02:40] Schwarz hat alles unter Kontrolle.} 19. Bf5 {[%emt 0:05:45]} Bxf5 {[%emt 0:09:42]} 20. Qxf5 {[%emt 0:05:10]} Nd6 {[%emt 0:00:59]} 21. Qc2 {[%emt 0:00:37]} Qh4 {[%emt 0:06:29]} 22. Ng3 {[%emt 0:10:39]} hxg4 {[%emt 0:00:40]} 23. Nf5 {[%emt 0:00:35]} (23. hxg4 $17 Qxg4 24. Nc5) 23... Nxf5 $19 {[%emt 0:10:21]} 24. Qxf5 {[%emt 0:00:03]} gxh3 {[%emt 0:00:11]} 25. Qxf7 {[%emt 0:03:07][%cal Ob3c5]} Qe4+ {[%emt 0:05:27]} 26. Ka1 {[%emt 0:00:08]} (26. Kc1 $142 Rd7 27. Qf4+ Qxf4 28. exf4) 26... Rd7 {[%emt 0:00:14]} 27. Qf4+ {[%emt 0:03:17]} Qxf4 {[%emt 0:00:09]} 28. exf4 {[%emt 0:00:01]} Re7 {[%emt 0:07:51]} 29. Nc5 {[%emt 0:09:23]} (29. Rh2 $142) 29... Nc4 {[%emt 0:05:52] [#] ...Re2 ist eine echte Drohung.} 30. b3 {[%emt 0:05:03]} Nd6 {[%emt 0:01:08]} 31. Rh2 {[%emt 0:00:33]} Rh4 {[%emt 0:09:57]} 32. Nd3 {[%emt 0:12:13]} Nb5 {[%emt 0:03:23]} 33. Ne5 {[%emt 0:00:34]} Rxf4 {[%emt 0:01:34]} 34. a4 {[%emt 0:04:29]} Rxd4 {[%emt 0:03:04]} 35. Re1 {[%emt 0:00:09] Und jetzt Nxc6+ wäre schön.} Nc3 {[%emt 0:15:47] ( -> ...Rd2)} ({Finger weg von} 35... Re4 36. Rxe4 dxe4 37. Ng4) 36. Rxh3 {[%emt 0:08:50] Droht Nxc6+ und aus.} Ne4 {[%emt 0:00:09]} 37. f4 {[%emt 0:02:43]} a5 {[%emt 0:02:01]} 38. Rh7 {[%emt 0:00:39]} Rd2 {[%emt 0:01:11]} 39. Rc1 {[%emt 0:01:08] Wehrt Nc3 ab} Rf2 {[%emt 0:04:09]} 40. Ng6 {[%emt 0:00:57] [#]} (40. Nd3 $19 Rf3 41. Rd1) 40... Nc3 $1 {[%emt 0:00:45][%mdl 512] Gewichteter Fehlerwert: Weiß=0.56/Schwarz=0.14 (sehr präzise) .  Fehler:       	Weiß=5     	---        Ungenau:       	Weiß=2     	Schwarz=2     OK:         	Weiß=8     	Schwarz=18    Bester:       	Weiß=1     	Schwarz=3     Brilliant:      	---       	Schwarz=1} 0-1

[Event "125-Jahre Werder Bremen 2024"]
[Site "Bremen"]
[Date "2024.03.07"]
[Round "6.11"]
[White "Guichard, Pauline"]
[Black "Knaak, Rainer"]
[Result "0-1"]
[ECO "D24"]
[WhiteElo "2385"]
[BlackElo "2450"]
[Annotator "RC"]
[PlyCount "50"]
[EventDate "2024.02.26"]
[EventType "swiss"]
[EventCountry "GER"]
[SourceTitle "playchess.com"]
[Source "ChessBase"]
[SourceQuality "1"]
[TimeControl "40/6000+30:1800+30"]

1. d4 {[%emt 0:00:04]} Nf6 {[%emt 0:00:10]} 2. c4 {[%emt 0:00:09]} e6 {[%emt 0:00:09]} 3. Nf3 {[%emt 0:00:11]} d5 {[%emt 0:00:16]} 4. Bg5 {[%emt 0:00:13]} dxc4 {[%emt 0:00:26]} 5. Nc3 {[%emt 0:00:26]} a6 {[%emt 0:01:09]} 6. e3 {[%emt 0:08:59]} b5 {[%emt 0:00:31]} 7. a4 {[%emt 0:00:16]} c6 {[%emt 0:00:33]} 8. axb5 {[%emt 0:10:41]} cxb5 {[%emt 0:00:13]} 9. Bxf6 {[%emt 0:04:52]} gxf6 {[%emt 0:00:20]} 10. Nxb5 {[%emt 0:00:05]} axb5 {[%emt 0:01:06]} 11. Rxa8 {[%emt 0:00:04]} Bb4+ {[%emt 0:00:44]} 12. Nd2 {[%emt 0:11:28]} Bb7 {[%emt 0:00:13]} 13. Ra7 {[%emt 0:01:07]} Qb6 {[%emt 0:00:28]} 14. Rxb7 {[%emt 0:00:40]} Qxb7 {[%emt 0:00:55]} 15. Be2 {[%emt 0:00:41]} Qxg2 {[%emt 0:02:40]} 16. Bf3 {[%emt 0:01:24]} Qg6 {[%emt 0:00:26]} 17. e4 {[%emt 0:11:45]} Nc6 {[%emt 0:13:22]} 18. Kf1 {[%emt 0:00:48]} Ke7 {[%emt 0:32:19]} 19. Nb1 {[%emt 0:09:32]} Rd8 {[%emt 0:08:17]} 20. Rg1 {[%emt 0:01:03]} Qh6 {[%emt 0:00:18]} 21. d5 {[%emt 0:00:07]} Ne5 {[%emt 0:01:03]} 22. Bg2 {[%emt 0:12:30]} Qf4 {[%emt 0:08:55]} 23. Bh1 {[%emt 0:02:19]} Nd3 {[%emt 0:01:53]} 24. Qc2 {[%emt 0:00:11]} Bc5 {[%emt 0:01:34]} 25. Rg2 {[%emt 0:00:39]} Qxe4 {[%emt 0:02:11]} 0-1